bitfinex/quotes_SOLUSD_20250626
["timestamp","ask_amount","ask_price","bid_price","bid_amount"]
[1750959167522,13.84629626,142.07,142.06,0.02]
[1750959168932,6.80751257,142.07,142.06,0.02]
[1750959170838,13.84629626,142.07,142.06,0.02]
[1750959171210,13.98845783,142.07,142.06,0.02]
[1750959171625,19.24937849,142.07,142.06,0.02]
[1750959173407,13.98845783,142.07,142.06,0.02]
[1750959174525,19.24937849,142.07,142.06,0.02]
[1750959174739,13.98845783,142.07,142.06,0.02]
[1750959175746,0.14216157,142.06,142.05,0.02]
[1750959175910,6.94967414,142.06,142.05,0.02]
[1750959177414,13.98895331,142.06,142.05,0.02]
[1750959179239,5.26092066,142.07,142.05,0.02]
[1750959179443,6.80751257,142.06,142.05,0.02]
[1750959180240,7.03862429,142.08,142.05,0.02]
[1750959180421,6.80751257,142.06,142.05,0.02]
[1750959181321,5.26092066,142.11,142.05,0.02]
[1750959181615,6.80751257,142.08,142.05,0.02]
[1750959184551,6.80751257,142.11,142.07,6.80751257]
[1750959184849,6.80751257,142.11,142.07,1.6373]
[1750959185247,6.80751257,142.1,142.07,1.6373]
[1750959185734,6.80751257,142.11,142.07,8.44481257]
[1750959186143,6.80751257,142.12,142.08,6.80751257]
[1750959186343,13.23545388,142.14,142.08,6.80751257]
[1750959186524,6.80751257,142.12,142.08,6.80751257]
[1750959186954,6.80751257,142.12,142.08,18.64964886]
[1750959187156,6.80751257,142.11,142.08,18.64964886]
[1750959188727,3.55487585,142.15,142.07,14.65301257]
[1750959188728,6.80751257,142.09,142.07,7.8455]
[1750959188926,0.14216157,142.14,142.05,6.22]
[1750959188927,6.80751257,142.08,142.05,6.22]
[1750959189247,6.80751257,142.07,142.05,0.02]
[1750959190245,7.03782147,142.09,142.05,0.02]
[1750959190246,6.80751257,142.08,142.05,0.02]
[1750959192623,6.80751257,142.07,142.05,0.02]
[1750959192946,6.80751257,142.06,142.05,0.02]
[1750959193330,7.03834771,142.08,142.05,0.02]
[1750959193546,6.80751257,142.08,142.05,0.02]
[1750959193749,6.80751257,142.07,142.05,0.02]
[1750959196252,6.80751257,142.07,142.05,89.42]
[1750959199026,7.03775029,142.1,142.05,89.42]
[1750959199234,6.80751257,142.07,142.05,0.02]
[1750959199845,7.03775029,142.1,142.05,0.02]
[1750959200041,6.80751257,142.09,142.05,96.22751257]
[1750959200380,6.80751257,142.09,142.05,89.42]
[1750959202169,6.80751257,142.1,142.05,96.22751257]
[1750959202330,6.80751257,142.1,142.06,6.80751257]
[1750959202532,6.80751257,142.1,142.06,18.64964886]
[1750959203461,6.80751257,142.1,142.06,114.85716143]
[1750959204564,5.26092066,142.13,142.08,18.64964886]
[1750959204874,6.80751257,142.12,142.08,89.4]
[1750959206835,6.80751257,142.12,142.09,18.64964886]
[1750959207171,6.80751257,142.12,142.09,20.16234886]
[1750959207349,6.80751257,142.12,142.09,109.56234886]
[1750959210971,6.80751257,142.11,142.09,90.9127]
[1750959211169,6.80751257,142.1,142.09,89.4]
[1750959211473,6.80751257,142.1,142.07,108.04964886]
[1750959215576,6.80751257,142.11,142.08,18.64964886]
[1750959215872,6.80751257,142.12,142.08,114.85716143]
[1750959216269,6.80751257,142.11,142.08,108.04964886]
[1750959217391,6.80751257,142.1,142.08,89.4]
[1750959219682,6.80751257,142.11,142.08,89.4]
[1750959220675,13.8439013,142.12,142.08,89.4]
[1750959222681,6.80751257,142.11,142.08,89.4]
[1750959223974,6.80751257,142.09,142.08,89.4]
[1750959224175,12.29673294,142.13,142.06,89.4]
[1750959224176,5.26092066,142.12,142.06,89.4]
[1750959224474,6.80751257,142.09,142.06,89.4]
[1750959224668,6.80751257,142.1,142.06,89.4]
[1750959225076,6.80751257,142.09,142.06,89.4]
[1750959227182,6.80751257,142.1,142.06,89.4]
[1750959227681,7.03723155,142.11,142.06,89.4]
[1750959227890,6.80751257,142.1,142.06,89.4]
[1750959229666,13.84489236,142.1,142.06,89.4]
[1750959229867,6.80751257,142.09,142.06,89.4]
[1750959230681,6.80751257,142.1,142.06,89.4]
[1750959232900,6.80751257,142.09,142.06,89.4]
[1750959233797,7.03755458,142.1,142.06,89.4]
[1750959233974,6.80751257,142.09,142.06,89.4]
[1750959234811,13.84539165,142.09,142.06,89.4]
[1750959234992,6.80751257,142.08,142.06,89.4]
[1750959235696,13.84539165,142.09,142.06,89.4]
[1750959241303,6.80751257,142.08,142.06,89.4]
[1750959243117,12.06843323,142.07,142.05,0.02]
[1750959243314,5.26092066,142.06,142.05,0.02]
[1750959243514,6.80751257,142.07,142.05,0.02]
[1750959243818,13.84631514,142.07,142.05,0.02]
[1750959244223,19.1072358,142.07,142.05,0.02]
[1750959244408,6.80751257,142.06,142.05,0.02]
[1750959247523,13.84679174,142.06,142.05,0.02]
[1750959248013,6.80751257,142.06,142.05,0.02]
[1750959248903,13.84679174,142.06,142.05,0.02]
[1750959249100,6.80751257,142.06,142.05,0.02]
[1750959250130,5.26092066,142.09,142.05,0.02]
[1750959250304,6.80751257,142.08,142.05,0.02]
[1750959250504,6.80751257,142.07,142.05,0.02]
[1750959252127,6.80751257,142.06,142.05,0.02]
[1750959253124,12.06843323,142.06,142.05,0.02]
[1750959253541,6.80751257,142.06,142.05,0.02]
[1750959253733,13.84679174,142.06,142.05,0.02]
[1750959253941,6.80751257,142.06,142.05,0.02]
[1750959254321,6.80751257,142.07,142.05,0.02]
[1750959254522,6.80751257,142.06,142.05,0.02]
[1750959258921,6.80751257,142.07,142.05,0.02]
[1750959260032,6.80751257,142.06,142.05,0.02]
[1750959260545,13.84679174,142.06,142.05,0.02]
[1750959262148,6.80751257,142.06,142.05,0.02]
[1750959262546,7.17945924,142.1,142.05,0.02]
[1750959262719,6.80751257,142.06,142.05,0.02]
[1750959263850,13.84679174,142.06,142.05,0.02]
[1750959265846,7.03878369,142.07,142.05,0.02]
[1750959266053,6.80751257,142.06,142.05,0.02]
[1750959267750,12.03511518,142.06,142.05,0.02]
[1750959268426,19.07439435,142.06,142.05,0.02]
[1750959268758,13.84679174,142.06,142.05,0.02]
[1750959269056,19.07439435,142.06,142.05,0.02]
[1750959269241,13.84679174,142.06,142.05,0.02]
[1750959269439,19.07439435,142.06,142.05,0.02]
[1750959269638,5.22760261,142.08,142.05,0.02]
[1750959269845,19.07340873,142.08,142.05,0.02]
[1750959271028,6.80751257,142.08,142.05,0.02]
[1750959272556,5.22760261,142.09,142.05,0.02]
[1750959272557,12.03511518,142.09,142.05,0.02]
[1750959272937,5.22760261,142.09,142.05,0.02]
[1750959273152,12.03511518,142.09,142.05,0.02]
[1750959273548,12.03511518,142.09,142.05,6.82751257]
[1750959274035,6.80751257,142.09,142.05,6.82751257]
[1750959274236,12.03511518,142.09,142.05,6.82751257]
[1750959274464,6.80751257,142.09,142.05,6.82751257]
[1750959274762,12.03511518,142.09,142.05,6.82751257]
[1750959276260,5.22760261,142.09,142.06,6.80751257]
[1750959276435,5.22760261,142.09,142.05,0.02]
[1750959276644,12.03511518,142.11,142.07,6.80751257]
[1750959278364,5.22760261,142.1,142.07,6.80751257]
[1750959280043,12.03511518,142.11,142.07,6.80751257]
[1750959280240,5.22760261,142.11,142.08,6.80751257]
[1750959280445,6.84751257,142.12,142.09,6.80751257]
[1750959280446,0.04,142.12,142.09,6.80751257]
[1750959280954,0.04,142.12,142.08,96.20751257]
[1750959282986,0.04,142.12,142.09,6.80751257]
[1750959283469,0.04,142.12,142.08,89.4]
[1750959283671,0.04,142.12,142.08,96.20751257]
[1750959283839,6.84751257,142.12,142.08,96.20751257]
[1750959284040,0.04,142.12,142.09,6.80751257]
[1750959284258,0.04,142.12,142.08,96.20751257]
[1750959284575,6.84751257,142.12,142.08,96.20751257]
[1750959285368,0.04,142.12,142.08,96.20751257]
[1750959286255,6.84751257,142.12,142.08,96.20751257]
[1750959287368,6.84751257,142.12,142.08,89.4]
[1750959288553,6.80751257,142.1,142.08,89.4]
[1750959288873,6.80751257,142.09,142.06,89.4]
[1750959289047,6.80751257,142.07,142.05,89.42]
[1750959289248,6.80751257,142.08,142.05,89.42]
[1750959290569,6.80751257,142.07,142.05,0.02]
[1750959291955,6.80751257,142.08,142.05,0.02]
[1750959293554,6.80751257,142.07,142.05,0.02]
[1750959293753,6.80751257,142.06,142.05,0.02]
[1750959298678,13.84679174,142.06,142.05,0.02]
[1750959300155,6.80751257,142.06,142.05,0.02]
[1750959300362,7.03927917,142.06,142.05,0.02]
[1750959300567,6.80751257,142.06,142.05,0.02]
[1750959301774,6.78230261,142.09,142.05,0.02]
[1750959301984,6.80751257,142.07,142.05,0.02]
[1750959302562,6.80751257,142.06,142.05,0.02]
[1750959305687,6.80751257,142.07,142.05,0.02]
[1750959307486,6.80751257,142.06,142.05,0.02]
[1750959309086,13.84679174,142.06,142.05,0.02]
[1750959311300,13.84679174,142.06,142.05,100.02]
[1750959320404,12.03511518,142.08,142.05,100.02]
[1750959320606,6.80751257,142.07,142.05,100.02]
[1750959320803,6.80751257,142.06,142.05,100.02]
[1750959323914,5.22760261,142.09,142.05,100.02]
[1750959324102,6.80751257,142.09,142.05,100.02]
[1750959325812,7.03767081,142.1,142.05,100.02]
[1750959325813,6.80751257,142.08,142.05,100.02]
[1750959326589,6.80751257,142.09,142.05,196.22751257]
[1750959326804,6.80751257,142.1,142.06,8.42301257]
[1750959327709,0.04,142.12,142.09,6.80751257]
[1750959327899,0.04,142.12,142.1,6.80751257]
[1750959328602,0.04,142.12,142.11,6.80751257]
[1750959329512,0.04,142.12,142.1,18.64964886]
[1750959329998,0.04,142.12,142.11,6.80751257]
[1750959330202,0.04,142.12,142.1,25.45716143]
[1750959330409,0.04,142.12,142.09,124.7904]
[1750959330597,0.04,142.12,142.09,89.4]
[1750959330598,6.84751257,142.12,142.09,89.4]
[1750959331313,6.80751257,142.11,142.09,89.4]
[1750959331508,6.80751257,142.1,142.09,89.4]
[1750959332224,6.80751257,142.1,142.07,18.64964886]
[1750959332519,6.80751257,142.09,142.07,89.4]
[1750959332700,0.04,142.12,142.06,91.0155]
[1750959332701,6.80751257,142.08,142.06,91.0155]
[1750959335306,13.84490248,142.1,142.06,91.0155]
[1750959337229,6.80751257,142.1,142.06,91.0155]
[1750959337901,5.22760261,142.11,142.07,6.80751257]
[1750959338110,6.84751257,142.12,142.07,96.20751257]
[1750959338410,0.04,142.12,142.08,25.45716143]
[1750959338609,0.04,142.12,142.1,6.80751257]
[1750959338810,0.04,142.12,142.1,96.20751257]
[1750959339213,0.04,142.12,142.11,6.80751257]
[1750959340432,0.04,142.12,142.11,54.21716143]
[1750959341644,0.04,142.12,142.11,150.159323]
[1750959341927,0.04,142.12,142.11,151.669423]
[1750959346946,0.04,142.12,142.11,298.869423]
[1750959347652,0.04,142.12,142.11,305.90622547]
[1750959348433,0.04,142.12,142.11,298.869423]
[1750959351438,0.04,142.14,142.13,18.79181043]
[1750959351759,0.04,142.14,142.13,144.40290422]
[1750959351936,0.04,142.14,142.13,143.699323]
[1750959354868,0.04,142.14,142.13,136.74964886]
[1750959355030,0.04,142.14,142.13,118.1]
[1750959355362,6.84751257,142.14,142.13,89.36]
[1750959356538,0.04,142.14,142.13,54.19716143]
[1750959356739,0.04,142.14,142.13,47.38964886]
[1750959357434,0.04,142.14,142.13,54.19716143]
[1750959360365,0.04,142.14,142.13,143.699323]
[1750959360674,0.04,142.14,142.13,145.331923]
[1750959361058,0.04,142.14,142.13,138.52441043]
[1750959361239,0.04,142.14,142.13,152.36773528]
[1750959364062,0.04,142.14,142.13,133.71808642]
[1750959364270,0.04,142.14,142.13,153.0713165]
[1750959364450,0.04,142.14,142.13,152.36773528]
[1750959364648,0.04,142.14,142.13,299.56773528]
[1750959365267,0.04,142.14,142.13,292.531923]
[1750959365462,0.04,142.14,142.13,299.56773528]
[1750959366060,0.04,142.14,142.13,292.531923]
[1750959367474,0.04,142.14,142.13,299.56773528]
[1750959367679,0.04,142.14,142.13,280.91808642]
[1750959368174,0.04,142.14,142.13,292.531923]
[1750959370751,0.04,142.14,142.13,145.331923]
[1750959377687,6.84751257,142.14,142.13,89.36]
[1750959378177,0.04,142.14,142.13,89.36]
[1750959378775,0.04,142.14,142.13,143.53716143]
[1750959379085,0.04,142.14,142.13,143.679323]
[1750959379687,0.04,142.14,142.13,150.71513528]
[1750959383694,0.04,142.14,142.13,143.679323]
[1750959385424,0.04,142.14,142.13,290.879323]
[1750959386024,0.04,142.14,142.13,290.879323]
[1750959389410,0.04,142.14,142.13,290.73716143]
[1750959390638,0.04,142.14,142.13,236.56]
[1750959390825,0.04,142.14,142.13,89.36]
[1750959391023,0.04,142.14,142.13,118.08]
[1750959393909,6.84751257,142.14,142.12,6.16]
[1750959394109,6.80751257,142.13,142.12,6.16]
[1750959396841,0.04,142.14,142.12,6.16]
[1750959397054,0.04,142.14,142.13,28.72]
[1750959397346,0.04,142.14,142.13,118.08]
[1750959398643,0.04,142.14,142.13,136.72964886]
[1750959399822,0.04,142.14,142.13,143.53716143]
[1750959402848,0.04,142.14,142.13,136.72964886]
[1750959404747,0.04,142.14,142.13,118.08]
[1750959406740,0.04,142.14,142.13,89.36]
[1750959408522,6.84751257,142.14,142.13,89.36]
[1750959408722,6.84751257,142.14,142.1,89.36]
[1750959408946,0.04,142.14,142.1,28.72]
[1750959409126,6.80751257,142.12,142.1,28.72]
[1750959412526,6.80751257,142.12,142.09,18.64964886]
[1750959412726,6.80751257,142.12,142.1,28.72]
[1750959413556,6.80751257,142.13,142.1,28.72]
[1750959413850,0.04,142.14,142.12,6.80751257]
[1750959414059,0.04,142.14,142.13,54.17716143]
[1750959414227,0.04,142.14,142.13,150.54290422]
[1750959414444,0.04,142.14,142.13,151.64754614]
[1750959415873,0.04,142.14,142.13,158.68335842]
[1750959417066,0.04,142.14,142.13,151.363223]
[1750959417266,0.04,142.14,142.13,158.39903528]
[1750959417665,0.04,142.14,142.13,151.363223]
[1750959417967,0.04,142.14,142.13,149.839323]
[1750959418273,0.04,142.14,142.13,60.33716143]
[1750959418441,0.04,142.14,142.13,61.18290422]
[1750959418650,0.04,142.14,142.13,68.2187165]
[1750959419574,0.04,142.14,142.13,61.18290422]
[1750959420147,0.04,142.14,142.13,68.2187165]
[1750959421274,0.04,142.16,142.15,134.293972]
[1750959421478,0.04,142.16,142.15,177.49464094]
[1750959421691,0.04,142.16,142.15,169.98364614]
[1750959422248,0.04,142.16,142.15,177.01846851]
[1750959422953,0.04,142.16,142.15,176.73414537]
[1750959424180,0.04,142.16,142.15,143.699323]
[1750959424386,0.04,142.16,142.15,136.74964886]
[1750959424599,6.84751257,142.16,142.15,89.36]
[1750959425785,0.04,142.16,142.15,89.36]
[1750959426077,6.84751257,142.16,142.15,89.36]
[1750959426459,0.04,142.16,142.15,89.36]
[1750959428482,6.84751257,142.16,142.15,89.36]
[1750959429962,6.84751257,142.16,142.14,28.86]
[1750959430165,0.04,142.16,142.14,28.86]
[1750959430781,0.04,142.16,142.13,114.16964886]
[1750959430782,6.84751257,142.16,142.13,114.16964886]
[1750959431082,0.04,142.16,142.13,143.02964886]
[1750959431286,6.84751257,142.16,142.13,143.02964886]
[1750959431659,6.84751257,142.16,142.13,124.38]
[1750959431864,6.84751257,142.16,142.13,95.52]
[1750959432079,6.84751257,142.16,142.13,6.16]
[1750959432288,6.80751257,142.15,142.13,95.52]
[1750959432789,6.84751257,142.16,142.13,95.52]
[1750959435793,6.84751257,142.16,142.13,6.16]
[1750959436499,6.84751257,142.16,142.12,118.22]
[1750959438199,0.04,142.16,142.12,118.22]
[1750959438377,6.84751257,142.16,142.12,118.22]
[1750959439076,0.04,142.16,142.12,118.22]
[1750959439290,6.84751257,142.16,142.12,118.22]
[1750959439804,0.04,142.16,142.12,125.02751257]
[1750959439984,0.04,142.16,142.13,6.80751257]
[1750959440192,0.04,142.16,142.13,18.64964886]
[1750959440381,0.04,142.16,142.14,6.80751257]
[1750959440580,0.04,142.16,142.14,35.64751257]
[1750959441013,0.04,142.16,142.15,25.45716143]
[1750959441569,0.04,142.16,142.15,114.81716143]
[1750959442984,0.04,142.16,142.15,89.36]
[1750959443797,0.04,142.16,142.15,114.81716143]
[1750959452718,0.04,142.16,142.15,108.00964886]
[1750959453021,0.04,142.16,142.15,114.81716143]
[1750959458125,0.04,142.16,142.15,108.00964886]
[1750959458309,0.04,142.16,142.15,136.80964886]
[1750959458726,0.04,142.16,142.15,143.61716143]
[1750959461927,0.04,142.16,142.15,136.80964886]
[1750959465747,0.04,142.16,142.15,143.61716143]
[1750959472349,0.04,142.16,142.15,136.80964886]
[1750959472548,0.04,142.16,142.15,143.61716143]
[1750959475065,0.04,142.16,142.15,150.79414537]
[1750959479229,0.04,142.16,142.15,143.759323]
[1750959479563,0.04,142.16,142.15,143.61716143]
[1750959479741,0.04,142.16,142.15,18.64964886]
[1750959480060,0.04,142.16,142.1,28.00924931]
[1750959480061,7.03482237,142.15,142.1,28.00924931]
[1750959480359,6.80751257,142.11,142.09,0.02]
[1750959480656,6.80751257,142.1,142.09,0.02]
[1750959480848,6.84751257,142.16,142.09,0.02]
[1750959480849,5.20442849,142.14,142.09,25.47716143]
[1750959481037,6.80751257,142.14,142.11,18.64964886]
[1750959481236,6.80751257,142.14,142.12,28.74]
[1750959481436,12.01194106,142.15,142.12,28.74]
[1750959481932,5.20442849,142.15,142.12,28.74]
[1750959482135,5.20442849,142.15,142.12,35.54751257]
[1750959482471,0.04,142.16,142.13,18.64964886]
[1750959482767,6.84751257,142.16,142.13,47.46964886]
[1750959483669,6.80751257,142.14,142.11,6.16]
[1750959483830,6.80751257,142.12,142.11,34.98]
[1750959484031,6.80751257,142.12,142.11,6.16]
[1750959484436,5.20442849,142.15,142.11,6.16]
[1750959484662,6.80751257,142.13,142.11,6.16]
[1750959486148,6.80751257,142.13,142.11,95.56]
[1750959489364,6.80751257,142.14,142.11,95.56]
[1750959489661,0.04,142.16,142.13,6.80751257]
[1750959489858,0.04,142.16,142.14,28.82]
[1750959490040,6.84751257,142.16,142.14,28.82]
[1750959490235,0.04,142.16,142.14,28.82]
[1750959490468,0.04,142.16,142.15,25.45716143]
[1750959490844,0.04,142.16,142.14,118.22]
[1750959490845,0.04,142.16,142.14,125.02751257]
[1750959491044,0.04,142.16,142.14,118.22]
[1750959492060,6.84751257,142.16,142.14,118.22]
[1750959492265,0.04,142.16,142.14,118.22]
[1750959494848,0.04,142.16,142.14,28.82]
[1750959495576,6.84751257,142.16,142.14,28.82]
[1750959496250,0.04,142.16,142.14,28.82]
[1750959497171,0.04,142.16,142.14,28.82]
[1750959499381,6.84751257,142.16,142.14,28.82]
[1750959500864,6.84751257,142.16,142.14,118.22]
[1750959503179,0.04,142.16,142.14,118.22]
[1750959503671,0.04,142.16,142.15,25.45716143]
[1750959503862,0.04,142.16,142.15,26.30280523]
[1750959506665,0.04,142.16,142.15,115.70280523]
[1750959508458,0.04,142.16,142.15,122.7376276]
[1750959508661,0.04,142.16,142.15,115.70280523]
[1750959511988,0.04,142.16,142.15,269.9376276]
[1750959512287,0.04,142.16,142.15,269.23414537]
[1750959514497,0.04,142.16,142.15,262.199323]
[1750959516365,0.04,142.16,142.15,255.39181043]
[1750959517083,0.04,142.16,142.15,262.199323]
[1750959517469,0.04,142.16,142.15,268.419323]
[1750959517670,0.04,142.16,142.15,268.27716143]
[1750959519195,0.04,142.16,142.15,143.08964886]
[1750959523996,0.04,142.16,142.15,143.06964886]
[1750959524205,0.04,142.16,142.15,114.26964886]
[1750959524397,0.04,142.16,142.15,143.06964886]
[1750959529915,0.04,142.16,142.15,149.87716143]
[1750959531218,0.04,142.16,142.15,298.744623]
[1750959532993,0.04,142.16,142.15,298.88678457]
[1750959533219,0.04,142.16,142.15,319.39158108]
[1750959533418,0.04,142.16,142.15,305.77655594]
[1750959533718,0.04,142.16,142.15,312.58406851]
[1750959536390,0.04,142.18,142.17,108.00964886]
[1750959536616,0.04,142.18,142.17,144.3205447]
[1750959536803,0.04,142.18,142.17,143.61716143]
[1750959537009,0.04,142.18,142.17,150.65099416]
[1750959537208,0.04,142.18,142.17,143.61716143]
[1750959541119,0.04,142.18,142.17,108.00964886]
[1750959541326,0.04,142.18,142.17,136.78964886]
[1750959541821,0.04,142.18,142.17,143.59716143]
[1750959542233,0.04,142.18,142.17,89.36]
[1750959542429,6.84751257,142.18,142.16,95.56]
[1750959545038,6.80751257,142.17,142.16,118.18]
[1750959545235,6.84751257,142.18,142.16,118.18]
[1750959547712,0.04,142.18,142.17,18.64964886]
[1750959548221,0.04,142.18,142.17,108.00964886]
[1750959550338,0.04,142.18,142.17,114.81716143]
[1750959550513,0.04,142.18,142.17,121.01716143]
[1750959551446,0.04,142.18,142.17,114.20964886]
[1750959551741,0.04,142.18,142.17,121.01716143]
[1750959555021,0.04,142.18,142.17,121.159323]
[1750959559443,0.04,142.18,142.17,114.20964886]
[1750959562942,6.84751257,142.18,142.17,6.2]
[1750959565442,6.84751257,142.18,142.16,89.36]
[1750959565647,6.80751257,142.17,142.16,89.36]
[1750959568054,5.24442849,142.18,142.16,108.00964886]
[1750959568229,0.04,142.18,142.16,136.78964886]
[1750959568951,6.84751257,142.18,142.16,118.14]
[1750959569352,0.04,142.18,142.16,118.14]
[1750959578867,6.80751257,142.17,142.16,89.36]
[1750959580277,6.80751257,142.17,142.13,89.36]
[1750959580454,6.80751257,142.14,142.13,89.36]
[1750959582575,6.80751257,142.14,142.12,95.56]
[1750959582782,6.80751257,142.14,142.12,124.32]
[1750959582950,5.2339027,142.17,142.12,95.56]
[1750959583158,6.80751257,142.14,142.12,6.2]
[1750959584777,6.80751257,142.13,142.12,6.2]
[1750959588060,6.80751257,142.13,142.1,89.36]
[1750959588259,6.80751257,142.11,142.09,89.38]
[1750959588455,6.80751257,142.1,142.09,89.38]
[1750959590301,6.80751257,142.11,142.09,89.38]
[1750959592484,7.03586065,142.13,142.09,0.02]
[1750959592485,6.80751257,142.1,142.09,0.02]
[1750959593183,13.84481024,142.1,142.09,0.02]
[1750959593565,17.34858094,142.1,142.09,0.02]
[1750959600188,10.31128327,142.1,142.09,0.02]
[1750959600365,17.34858094,142.1,142.09,0.02]
[1750959600793,10.31128327,142.1,142.09,0.02]
[1750959601091,6.80751257,142.1,142.09,0.02]
[1750959601395,6.80751257,142.11,142.09,0.02]
[1750959601562,7.27603396,142.14,142.09,0.02]
[1750959601563,6.80751257,142.13,142.09,6.82751257]
[1750959601890,6.80751257,142.13,142.09,35.60751257]
[1750959602578,6.80751257,142.12,142.09,28.8]
[1750959607302,6.80751257,142.12,142.09,118.2]
[1750959609806,8.16266157,142.18,142.09,125.00751257]
[1750959610113,6.80751257,142.14,142.09,125.00751257]
[1750959610396,6.80751257,142.15,142.11,6.80751257]
[1750959610700,6.80751257,142.15,142.11,35.56751257]
[1750959610900,6.80751257,142.14,142.11,28.76]
[1750959611699,7.0340733,142.17,142.11,35.56751257]
[1750959611910,6.80751257,142.16,142.12,6.80751257]
[1750959612505,0.04,142.18,142.12,6.80751257]
[1750959612802,6.80751257,142.17,142.12,96.20751257]
[1750959613391,6.80751257,142.16,142.12,96.20751257]
[1750959613602,6.80751257,142.16,142.12,89.4]
[1750959614300,6.80751257,142.16,142.12,96.20751257]
[1750959617406,6.80751257,142.16,142.13,28.76]
[1750959617578,6.80751257,142.17,142.13,35.56751257]
[1750959618399,6.80751257,142.16,142.13,28.76]
[1750959618783,6.80751257,142.17,142.13,35.56751257]
[1750959619402,0.04,142.18,142.14,25.45716143]
[1750959619597,6.84751257,142.18,142.14,114.85716143]
[1750959620104,6.84751257,142.18,142.14,108.04964886]
[1750959623006,6.80751257,142.17,142.14,108.04964886]
[1750959624111,6.84751257,142.18,142.14,114.85716143]
[1750959624327,6.84751257,142.18,142.14,116.51666143]
[1750959624633,6.84751257,142.18,142.15,28.76]
[1750959628034,6.84751257,142.18,142.15,118.16]
[1750959631718,0.04,142.18,142.15,124.96751257]
[1750959632021,0.04,142.18,142.17,25.45716143]
[1750959632200,0.04,142.18,142.17,143.61716143]
[1750959634423,6.84751257,142.18,142.17,89.4]
[1750959635100,0.04,142.18,142.17,89.4]
[1750959638526,0.04,142.18,142.17,143.61716143]
[1750959639028,0.04,142.18,142.17,143.759323]
[1750959641740,0.04,142.18,142.17,152.39215573]
[1750959641907,0.04,142.18,142.17,158.67875573]
[1750959642110,0.04,142.2,142.18,18.79181043]
[1750959642313,0.04,142.2,142.19,60.519323]
[1750959642616,0.04,142.2,142.19,149.919323]
[1750959642821,0.04,142.2,142.19,143.11181043]
[1750959643126,0.04,142.2,142.19,149.919323]
[1750959643330,0.04,142.2,142.19,34.92]
[1750959643642,0.04,142.2,142.19,6.18]
[1750959644218,6.84751257,142.2,142.19,6.18]
[1750959644547,0.04,142.2,142.19,6.18]
[1750959645538,6.84751257,142.2,142.19,6.18]
[1750959646333,6.84751257,142.2,142.17,118.14]
[1750959646934,6.80751257,142.19,142.17,118.14]
[1750959647121,6.80751257,142.18,142.17,89.4]
[1750959647634,6.80751257,142.19,142.17,89.4]
[1750959650532,0.04,142.2,142.18,25.45716143]
[1750959650736,0.04,142.2,142.17,124.94751257]
[1750959651035,0.04,142.2,142.18,18.64964886]
[1750959653738,0.04,142.2,142.18,25.45716143]
[1750959654713,0.04,142.2,142.18,114.85716143]
[1750959660143,0.04,142.2,142.18,108.04964886]
[1750959660766,6.80751257,142.19,142.18,89.4]
[1750959661039,6.80751257,142.19,142.15,118.14]
[1750959662141,6.84751257,142.2,142.16,6.80751257]
[1750959662454,6.84751257,142.2,142.19,6.80751257]
[1750959662455,0.04,142.2,142.19,6.80751257]
[1750959662626,0.04,142.2,142.19,35.54751257]
[1750959663233,0.04,142.2,142.19,145.403723]
[1750959664247,0.04,142.2,142.19,145.26156143]
[1750959664951,0.04,142.2,142.19,143.59716143]
[1750959665249,0.04,142.2,142.19,89.4]
[1750959669652,0.04,142.2,142.18,28.74]
[1750959669956,6.80751257,142.19,142.17,136.78964886]